bitfinex/quotes_ETHUSD_20250322
["timestamp","ask_amount","ask_price","bid_price","bid_amount"]
[1742650684433,8.8648853,1988.8,1988.4,5.62686]
[1742650687137,8.8648853,1988.8,1988.4,5.62685]
[1742650687427,3.8367253,1988.8,1988.4,7.172096]
[1742650687905,5.02797,1988.9,1988.5,5.02877]
[1742650688437,8.8644353,1989.0,1988.6,5.02863]
[1742650688728,8.8644353,1989.0,1988.7,4.776]
[1742650689228,13.8922853,1989.0,1988.7,4.776]
[1742650689396,3.8367253,1989.0,1988.7,4.776]
[1742650689895,5.02799,1988.9,1988.7,4.776]
[1742650690102,10.05609,1988.9,1988.7,4.776]
[1742650690541,5.02799,1988.9,1988.7,4.776]
[1742650692439,5.02799,1988.9,1988.6,26.586]
[1742650692609,5.02799,1988.9,1988.7,4.773]
[1742650693446,5.02841,1988.7,1988.6,31.359]
[1742650693944,9.6821653,1988.8,1988.6,31.359]
[1742650694546,14.7105053,1988.8,1988.6,31.359]
[1742650695647,5.02841,1988.7,1988.6,31.359]
[1742650695861,5.02841,1988.7,1988.6,4.773]
[1742650697018,9.6821653,1988.8,1988.6,4.773]
[1742650697953,5.02845,1988.7,1988.4,26.585]
[1742650698163,5.02845,1988.7,1988.6,4.767]
[1742650698658,5.84536,1988.8,1988.6,4.767]
[1742650698814,9.6820853,1988.8,1988.6,4.767]
[1742650699760,9.6821553,1988.8,1988.6,4.767]
[1742650700573,5.02841,1988.7,1988.6,4.767]
[1742650700861,5.01841,1988.7,1988.6,4.767]
[1742650701332,9.6821353,1988.8,1988.6,4.767]
[1742650701974,14.7104753,1988.8,1988.6,4.767]
[1742650702323,9.6821353,1988.8,1988.6,4.767]
[1742650702521,8.8649353,1988.8,1988.6,4.767]
[1742650705970,5.02841,1988.7,1988.6,4.767]
[1742650706476,10.25422183,1988.8,1988.6,4.767]
[1742650708141,3.8367253,1988.8,1988.6,4.767]
[1742650709676,8.8648753,1988.8,1988.6,4.767]
[1742650710080,3.8367253,1988.8,1988.6,4.767]
[1742650710376,8.8649153,1988.8,1988.6,4.767]
[1742650710776,4.6539253,1989.0,1988.6,4.767]
[1742650710983,3.785,1989.2,1988.6,5.8415]
[1742650711172,3.785,1989.2,1988.7,5.02836]
[1742650711173,3.0,1989.0,1988.7,5.02836]
[1742650711375,8.8642653,1989.1,1988.7,5.02836]
[1742650712686,8.8643753,1989.0,1988.6,10.8701]
[1742650714182,3.8367253,1989.0,1988.6,15.89864]
[1742650714500,8.8643953,1989.0,1988.7,1.589864]
[1742650715993,5.81217,1989.2,1988.7,1.589864]
[1742650716286,8.8642153,1989.1,1988.7,6.618184]
[1742650716451,13.8917853,1989.1,1988.7,6.618184]
[1742650716781,8.8644753,1989.0,1988.7,1.589864]
[1742650717991,3.8367253,1989.0,1988.7,6.618264]
[1742650718391,8.8642153,1989.1,1988.8,0.6618264]
[1742650718986,3.8367253,1989.1,1988.8,5.6899064]
[1742650719160,3.0,1989.3,1989.0,5.6253]
[1742650719360,3.0,1989.3,1989.1,4.755]
[1742650719773,6.8367253,1989.3,1989.1,4.755]
[1742650719953,11.8636253,1989.3,1989.1,4.755]
[1742650720656,16.8907253,1989.3,1989.1,4.755]
[1742650720888,3.8367253,1989.2,1989.1,4.755]
[1742650721789,8.8638653,1989.2,1989.1,4.755]
[1742650722893,3.8367253,1989.2,1989.1,4.755]
[1742650723102,8.0269,1989.3,1989.1,4.755]
[1742650723103,6.8367253,1989.3,1989.1,4.755]
[1742650723402,11.8636453,1989.3,1989.1,4.755]
[1742650724095,6.8367253,1989.3,1989.1,4.755]
[1742650724301,0.7874,1989.5,1989.1,5.2305]
[1742650724521,8.81394,1989.5,1989.1,10.8555]
[1742650724678,5.02667,1989.4,1989.1,5.8283]
[1742650725367,8.8633953,1989.4,1989.1,5.8283]
[1742650727100,13.8902753,1989.4,1989.1,5.8283]
[1742650728028,8.8633953,1989.4,1989.1,5.8283]
[1742650728414,3.8367253,1989.4,1989.1,10.85566]
[1742650728728,8.02645,1989.5,1989.2,0.7649937]
[1742650729120,8.8629153,1989.6,1989.2,5.7921337]
[1742650730529,5.02619,1989.6,1989.2,5.7921337]
[1742650730937,8.8629153,1989.6,1989.2,5.7921337]
[1742650731424,13.8892553,1989.6,1989.2,5.7921337]
[1742650731630,13.8892553,1989.6,1989.3,0.57921337]
[1742650732603,5.02646,1989.5,1989.3,0.57921337]
[1742650732804,5.02646,1989.5,1989.2,0.7649937]
[1742650736093,5.02646,1989.5,1989.2,27.3429937]
[1742650736431,3.8367253,1989.4,1989.2,27.3429937]
[1742650736641,8.8633653,1989.4,1989.3,4.733]
[1742650736932,9.6872653,1989.4,1989.3,4.733]
[1742650737336,9.6872653,1989.4,1989.2,26.578]
[1742650737652,5.02689,1989.3,1989.2,31.311]
[1742650740801,5.02689,1989.3,1989.2,4.733]
[1742650743940,9.6872653,1989.4,1989.2,4.733]
[1742650744113,8.8633653,1989.4,1989.2,4.733]
[1742650748368,5.02598,1989.7,1989.3,5.0268]
[1742650748575,5.02622,1989.6,1989.3,5.0268]
[1742650749148,5.02622,1989.6,1989.2,16.34787]
[1742650750841,8.8629453,1989.6,1989.2,16.34787]
[1742650751046,5.02598,1989.7,1989.3,5.02685]
[1742650751264,5.02598,1989.7,1989.4,0.502685]
[1742650751636,10.05206,1989.7,1989.4,0.502685]
[1742650751836,5.02616,1989.6,1989.4,0.502685]
[1742650752777,10.05248,1989.6,1989.4,0.502685]
[1742650752952,8.8628853,1989.6,1989.2,16.34792]
[1742650755664,3.8367253,1989.6,1989.3,5.02688]
[1742650755864,5.0259,1989.7,1989.3,10.05361]
[1742650756471,5.0259,1989.7,1989.3,5.02673]
[1742650757042,10.05196,1989.7,1989.3,5.02673]
[1742650757244,10.05196,1989.7,1989.4,0.502673]
[1742650757443,5.0259,1989.7,1989.4,0.502673]
[1742650757644,8.8626253,1989.7,1989.4,0.502673]
[1742650758277,13.8886853,1989.7,1989.4,0.502673]
[1742650758648,5.02619,1989.6,1989.4,0.502673]
[1742650758972,5.02619,1989.6,1989.2,16.34779]
[1742650759595,5.02619,1989.6,1989.3,5.02688]
[1742650760585,13.8887653,1989.7,1989.3,5.02688]
[1742650760883,8.8626753,1989.7,1989.3,5.02688]
[1742650761287,2.3093647,1989.6,1989.3,5.02688]
[1742650761486,2.3093647,1989.6,1989.4,0.502688]
[1742650764183,0.7659,1989.8,1989.5,0.5978]
[1742650764184,7.3350047,1989.8,1989.5,0.5978]
[1742650764388,2.3093647,1989.8,1989.6,4.707]
[1742650764979,2.3093647,1989.9,1989.6,4.707]
[1742650765287,2.3093647,1989.8,1989.7,0.4707]
[1742650772608,2.3093647,1990.0,1989.7,0.4707]
[1742650772912,2.3093647,1990.1,1989.8,0.5978]
[1742650773110,2.3093647,1990.0,1989.8,5.62342]
[1742650773523,2.3093647,1990.1,1989.8,5.62342]
[1742650773682,2.3093647,1990.1,1989.9,0.562342]
[1742650773886,2.3093647,1990.1,1990.0,4.702]
[1742650775222,5.7815,1990.2,1990.0,4.702]
[1742650775391,2.3093647,1990.3,1990.0,4.702]
[1742650775716,2.3093647,1990.3,1990.1,1.068]
[1742650775918,2.3093647,1990.2,1990.1,0.4702]
[1742650777723,2.3093647,1990.2,1990.0,4.702]
[1742650777929,2.3093647,1990.1,1990.0,4.702]
[1742650778296,7.3342347,1990.1,1990.0,4.702]
[1742650778695,7.3342347,1990.1,1989.9,0.562342]
[1742650779009,2.3093647,1990.0,1989.7,12.08436]
[1742650780018,2.3093647,1990.1,1989.8,9.72655]
[1742650780204,2.3093647,1990.2,1989.9,5.02537]
[1742650780518,2.3093647,1990.2,1989.8,9.72654]
[1742650780715,7.3340047,1990.2,1989.8,9.72654]
[1742650780920,7.3340047,1990.2,1989.9,27.541654]
[1742650780921,2.3093647,1990.1,1989.9,27.541654]
[1742650781119,8.87141721,1990.2,1989.9,27.541654]
[1742650781883,5.02464,1990.2,1989.9,27.541654]
[1742650783627,3.84677721,1990.3,1990.0,0.5978]
[1742650783824,0.8216,1990.5,1990.1,5.02483]
[1742650783825,9.69224721,1990.5,1990.1,5.02483]
[1742650784028,5.02362,1990.6,1990.2,10.225963]
[1742650784331,10.04741,1990.6,1990.2,10.225963]
[1742650784688,8.87065721,1990.5,1990.2,5.201483]
[1742650787185,5.02362,1990.6,1990.3,0.5978]
[1742650787327,5.02369,1990.6,1990.3,0.5978]
[1742650789571,5.84513,1990.7,1990.3,0.5978]
[1742650789743,9.69190721,1990.7,1990.3,0.5978]
[1742650790056,5.02362,1990.6,1990.3,0.5978]
[1742650790623,14.71550721,1990.7,1990.3,0.5978]
[1742650791961,10.86873,1990.7,1990.3,0.5978]
[1742650792160,5.02363,1990.6,1990.3,0.5978]
[1742650793783,5.02363,1990.6,1990.3,1.7767273]
[1742650794744,14.71546721,1990.7,1990.3,1.7767273]
[1742650795188,14.71546721,1990.7,1990.3,28.3407273]
[1742650795370,5.02362,1990.6,1990.3,28.3407273]
[1742650801499,10.04743,1990.6,1990.3,28.3407273]
[1742650801787,8.87073721,1990.5,1990.3,26.564]
[1742650802558,5.02411,1990.4,1990.3,26.564]
[1742650802947,5.84791,1990.4,1990.3,26.564]
[1742650803151,8.15583444,1990.4,1990.3,26.564]
[1742650803548,8.15583444,1990.4,1990.3,31.248]
[1742650804749,8.15583444,1990.4,1990.3,4.684]
[1742650805907,7.33203444,1990.4,1990.3,4.684]
[1742650806043,2.30792444,1990.4,1990.3,4.684]
[1742650806247,7.33188444,1990.5,1990.3,5.811179]
[1742650806771,2.30792444,1990.4,1990.3,5.811179]
[1742650807490,2.30792444,1990.4,1990.3,4.684]
[1742650809102,13.89384006,1990.5,1990.3,4.684]
[1742650809276,8.86979006,1990.5,1990.3,4.684]
[1742650811797,13.89383006,1990.5,1990.3,4.684]
[1742650812602,5.02411,1990.4,1990.3,4.684]
[1742650813793,8.86979006,1990.5,1990.3,4.684]
[1742650814409,13.89385006,1990.5,1990.3,4.684]
[1742650814572,5.02411,1990.4,1990.3,4.684]
[1742650830928,8.86970006,1990.5,1990.3,4.684]
[1742650831134,2.30746892,1990.4,1990.3,4.684]
[1742650831596,2.54545198,1990.4,1990.3,4.684]
[1742650836454,0.23798306,1990.4,1990.3,4.684]
[1742650836634,2.54545198,1990.4,1990.3,4.684]
[1742650836808,0.23798306,1990.4,1990.3,4.684]
[1742650837012,0.23798306,1990.4,1990.3,7.2035301]
[1742650838438,0.23798306,1990.4,1990.3,7.8013301]
[1742650838832,12.35389892,1990.8,1990.3,7.8013301]
[1742650839030,0.19769624,1990.4,1990.3,7.8013301]
[1742650839238,12.35389892,1990.8,1990.3,7.8013301]
[1742650839437,0.19769624,1990.4,1990.3,5.2818]
[1742650839654,2.30746892,1990.7,1990.3,5.2818]
[1742650839851,0.19769624,1990.4,1990.3,5.2818]
[1742650840034,2.30746892,1990.7,1990.3,5.2818]
[1742650840238,0.19769624,1990.4,1990.3,5.2818]
[1742650840425,2.30746892,1990.7,1990.3,5.2818]
[1742650840960,0.19868997,1990.6,1990.3,5.2818]
[1742650843158,0.19868997,1990.6,1990.3,11.27179]
[1742650844527,7.33060892,1990.8,1990.3,11.27179]
[1742650844726,0.19951362,1990.7,1990.3,11.27179]
[1742650844940,0.19951362,1990.7,1990.4,1.127179]
[1742650845144,0.19951362,1990.7,1990.5,0.5978]
[1742650845352,7.33039892,1990.9,1990.5,0.5978]
[1742650845556,0.20001036,1990.8,1990.5,0.5978]
[1742650845744,2.50747928,1990.8,1990.5,0.5978]
[1742650846373,0.20001036,1990.8,1990.5,0.5978]
[1742650848863,2.50747928,1990.8,1990.5,6.58779]
[1742650849059,2.50747928,1990.8,1990.6,0.658779]
[1742650849367,2.50747928,1990.8,1990.7,4.67]
[1742650851947,3.30657928,1990.8,1990.7,4.67]
[1742650852288,3.10656892,1990.8,1990.7,4.67]
[1742650853449,8.12966892,1990.8,1990.7,4.67]
[1742650853853,8.32869465,1990.8,1990.7,4.67]
[1742650859357,7.52959465,1990.8,1990.7,4.67]
[1742650860580,0.19902573,1990.8,1990.7,4.67]
[1742650863067,2.50649465,1990.8,1990.7,4.67]
[1742650863712,7.52959465,1990.8,1990.7,4.67]
[1742650867008,2.50649465,1990.8,1990.7,4.67]
[1742650871016,7.52959465,1990.8,1990.7,4.67]
[1742650882825,5.22212573,1990.8,1990.7,4.67]
[1742650883123,7.52959465,1990.8,1990.7,4.67]
[1742650884107,2.50649465,1990.8,1990.7,4.67]
[1742650884312,7.52959465,1990.8,1990.7,4.67]
[1742650886935,5.22212573,1990.8,1990.7,4.67]
[1742650887137,7.52959465,1990.8,1990.7,4.67]
[1742650887434,5.02335,1990.7,1990.6,26.558]
[1742650887637,8.14751892,1990.7,1990.6,26.558]
[1742650887839,5.02436,1990.3,1990.2,5.98999]
[1742650888045,5.02462,1990.2,1990.0,26.558]
[1742650888231,2.30746892,1990.1,1990.0,26.558]
[1742650888540,2.50045124,1990.1,1990.0,26.558]
[1742650888712,2.50045124,1990.1,1990.0,31.228]
[1742650892004,0.19298232,1990.1,1990.0,31.228]
[1742650892205,7.33208892,1990.2,1990.0,31.228]
[1742650892404,0.19031408,1990.1,1990.0,31.228]
[1742650892898,7.33208892,1990.2,1990.0,31.228]
[1742650893103,0.19031408,1990.1,1990.0,31.228]
[1742650893345,7.33233892,1990.1,1990.0,26.558]
[1742650893547,7.522653,1990.1,1990.0,31.228]
[1742650894703,5.21518408,1990.1,1990.0,31.228]
[1742650895948,7.522653,1990.1,1990.0,31.228]
[1742650898352,5.21518408,1990.1,1990.0,31.228]
[1742650898676,7.522653,1990.1,1990.0,31.228]
[1742650898833,7.522653,1990.1,1990.0,31.229]
[1742650907294,0.19031408,1990.1,1990.0,31.229]
[1742650907591,2.30746892,1990.4,1990.0,31.8268]
[1742650907751,0.15993182,1990.1,1990.0,31.8268]
[1742650907952,5.02437,1990.3,1990.0,31.8268]
[1742650908294,0.16004943,1990.1,1990.0,31.8268]
[1742650908455,7.33183892,1990.3,1990.0,31.8268]
[1742650908653,0.15993182,1990.1,1990.0,31.8268]
[1742650908853,7.33183892,1990.3,1990.0,31.8268]
[1742650909073,0.15981421,1990.1,1990.0,31.8268]
[1742650909278,10.04894,1990.3,1990.0,31.8268]
[1742650909764,0.16042883,1990.2,1990.0,31.8268]
[1742650912596,5.18504883,1990.2,1990.0,31.8268]
[1742650914294,0.16042883,1990.2,1990.0,31.8268]
[1742650917699,5.18506883,1990.2,1990.0,31.8268]
[1742650917898,0.16042883,1990.2,1990.0,31.8268]
[1742650919199,0.16042883,1990.2,1990.1,26.565]
[1742650920505,5.18504883,1990.2,1990.1,26.565]
[1742650920901,0.16042883,1990.2,1990.1,26.565]
[1742650923131,0.16042883,1990.2,1990.1,36.01025892]
[1742650923423,5.02372,1990.6,1990.3,0.5978]
[1742650923609,5.02372,1990.6,1990.4,4.671]
[1742650923824,0.16266414,1990.5,1990.4,4.671]
[1742650929850,7.33083892,1990.7,1990.4,4.671]
[1742650930150,5.02362,1990.6,1990.5,0.4671]
[1742650930325,7.33084892,1990.7,1990.5,0.4671]
[1742650930662,12.35440892,1990.7,1990.5,0.4671]
[1742650931060,7.33084892,1990.7,1990.5,0.4671]
[1742650931458,12.35440892,1990.7,1990.5,0.4671]
[1742650931661,5.02338,1990.7,1990.5,0.4671]
[1742650932316,7.33084892,1990.7,1990.5,0.4671]
[1742650932517,5.02338,1990.7,1990.5,0.4671]
[1742650932716,7.33084892,1990.7,1990.5,0.4671]
[1742650932939,5.02338,1990.7,1990.5,0.4671]
[1742650933829,7.33084892,1990.7,1990.5,0.4671]
[1742650934130,7.33084892,1990.7,1990.4,4.671]
[1742650935959,2.30746892,1990.8,1990.4,4.671]
[1742650936374,8.14215892,1990.9,1990.5,0.5978]
[1742650936895,5.0231,1990.8,1990.5,0.5978]
[1742650937079,8.14215892,1990.9,1990.5,0.5978]
[1742650937391,8.14215892,1990.9,1990.5,1.12468]
[1742650937594,2.30746892,1990.8,1990.5,1.12468]
[1742650937752,7.33059892,1990.8,1990.5,1.12468]
[1742650938090,5.02313,1990.8,1990.5,1.12468]
[1742650938293,5.02313,1990.8,1990.6,26.56]
[1742650938454,5.02313,1990.8,1990.6,29.328468]
[1742650938659,7.33045892,1990.9,1990.6,29.328468]
[1742650938953,12.35353892,1990.9,1990.6,29.328468]
[1742650939152,5.02315,1990.8,1990.6,29.328468]
[1742650939354,0.16700304,1990.7,1990.6,29.328468]
[1742650942697,2.47447196,1990.7,1990.6,29.328468]
[1742650942869,3.22957196,1990.7,1990.6,26.56]
[1742650943800,8.25292196,1990.7,1990.6,26.56]
[1742650946615,8.25292196,1990.7,1990.6,31.229]
[1742650947914,8.25292196,1990.7,1990.6,4.669]
[1742650956627,7.49782196,1990.7,1990.6,4.669]
[1742650958639,8.32542196,1990.7,1990.5,26.558]
[1742650958853,13.34896196,1990.7,1990.6,4.669]
[1742650968572,12.52136196,1990.7,1990.6,4.669]
[1742650974975,2.47447196,1990.7,1990.6,4.669]
[1742650975137,0.16700304,1990.7,1990.6,5.7337]
[1742650978885,0.16700304,1990.7,1990.6,32.2917]
[1742650981084,5.19035304,1990.7,1990.6,32.2917]
[1742650981239,0.16700304,1990.7,1990.6,32.2917]
[1742650981456,5.19035304,1990.7,1990.6,32.2917]
[1742650981649,0.16700304,1990.7,1990.6,32.2917]
[1742650990937,5.19035304,1990.7,1990.6,32.2917]
[1742650992828,0.16700304,1990.7,1990.6,32.2917]
[1742650993830,5.19035304,1990.7,1990.6,31.6939]
[1742651004439,0.16700304,1990.7,1990.6,31.6939]
[1742651004842,5.02293,1990.9,1990.6,32.2917]
[1742651005145,0.16576025,1990.8,1990.6,31.8248]
[1742651005719,5.18886025,1990.8,1990.6,31.8248]
[1742651007140,0.16576025,1990.8,1990.6,31.8248]
[1742651007738,5.18886025,1990.8,1990.6,31.8248]
[1742651008732,5.18886025,1990.8,1990.7,26.556]
[1742651010550,0.16576025,1990.8,1990.7,26.556]
[1742651012167,5.18886025,1990.8,1990.7,26.556]
[1742651013572,7.49632917,1990.8,1990.7,26.556]
[1742651026305,8.29552917,1990.8,1990.7,31.223]
[1742651027718,5.18886025,1990.8,1990.7,31.223]
[1742651028207,5.18886025,1990.8,1990.7,4.667]
[1742651028407,0.16576025,1990.8,1990.7,4.667]
[1742651028770,5.18886025,1990.8,1990.7,4.667]
[1742651029504,7.49632917,1990.8,1990.7,4.667]
[1742651031511,5.18886025,1990.8,1990.7,4.667]
[1742651031806,7.49632917,1990.8,1990.7,4.667]
[1742651034386,8.29192917,1990.8,1990.7,4.667]
[1742651038931,7.49632917,1990.8,1990.7,4.667]
[1742651040429,5.02335,1990.7,1990.6,26.556]
[1742651040733,7.49598775,1990.7,1990.6,31.222]
[1742651041031,5.18851883,1990.7,1990.6,31.222]
[1742651041532,0.16516883,1990.7,1990.6,31.222]
[1742651043039,8.27298775,1990.7,1990.6,26.556]
[1742651043198,8.27298775,1990.7,1990.6,31.222]
[1742651046734,8.27298775,1990.7,1990.6,26.556]
[1742651047039,8.27298775,1990.7,1990.6,31.222]
[1742651048647,9.60259653,1990.7,1990.6,26.556]
[1742651048804,9.66539427,1990.7,1990.6,31.222]
[1742651049920,5.02512,1990.0,1989.9,26.556]
[1742651050116,7.49429306,1990.0,1989.9,31.222]
[1742651052307,7.49429306,1990.0,1989.9,32.22966691]
[1742651056774,5.18682414,1990.0,1989.9,32.22966691]
[1742651056923,0.16170414,1990.0,1989.9,32.22966691]
[1742651057122,5.02464,1990.2,1989.9,32.82746691]
[1742651057324,0.16107225,1990.1,1989.9,32.82746691]
[1742651057557,10.04945,1990.2,1989.9,32.82746691]
[1742651057763,0.16057542,1990.0,1989.9,32.82746691]
[1742651057957,10.04938,1990.2,1989.9,32.82746691]
[1742651058139,0.16057542,1990.0,1989.9,32.82746691]
[1742651059447,10.0495,1990.2,1989.9,32.82746691]
[1742651059648,0.16057542,1990.0,1989.9,32.82746691]
[1742651059862,5.02488,1990.1,1989.9,32.82746691]
[1742651060159,0.16057542,1990.0,1989.9,32.82746691]
[1742651063630,5.02495,1990.1,1989.9,32.82746691]
[1742651063859,0.16057542,1990.0,1989.9,32.82746691]
[1742651070380,0.16057542,1990.0,1989.9,32.22966691]
[1742651070670,5.18569542,1990.0,1989.9,32.22966691]
[1742651071079,5.18569542,1990.0,1989.9,32.23066691]
[1742651075796,0.16057542,1990.0,1989.9,32.23066691]
[1742651076277,0.16057542,1990.0,1989.9,32.82846691]
[1742651078511,0.16057542,1990.0,1989.9,32.23066691]
[1742651083901,10.04939,1990.2,1989.9,32.23066691]
[1742651084071,0.1606915,1990.0,1989.9,32.23066691]
[1742651084603,10.04939,1990.2,1989.9,32.23066691]
[1742651084764,0.1606915,1990.0,1989.9,32.23066691]
[1742651084967,10.04939,1990.2,1989.9,32.23066691]
[1742651085163,0.16118834,1990.1,1989.9,32.23066691]
[1742651085379,5.02438,1990.3,1990.0,0.55]
[1742651085584,0.16195942,1990.2,1990.0,0.55]
[1742651087732,0.16195942,1990.2,1990.1,14.47012892]
[1742651087927,0.16195942,1990.2,1990.1,16.41962881]
[1742651088220,5.02342,1990.7,1990.4,0.5978]
[1742651088381,10.04698,1990.7,1990.5,4.666]
[1742651088580,5.18799907,1990.6,1990.5,4.666]
[1742651092867,5.18799907,1990.6,1990.5,31.226]
[1742651095555,7.49546799,1990.6,1990.5,31.226]
[1742651097734,7.49546799,1990.6,1990.5,26.56]
[1742651097940,7.49546799,1990.6,1990.5,31.225]
[1742651098756,5.18799907,1990.6,1990.5,31.225]
[1742651100551,7.49546799,1990.6,1990.5,31.225]
[1742651102055,8.25666799,1990.6,1990.5,31.225]
[1742651102356,9.58467379,1990.6,1990.5,31.225]
[1742651103050,9.58467379,1990.6,1990.5,26.56]
[1742651103624,9.64747597,1990.6,1990.5,26.56]
[1742651103829,12.64747596,1990.6,1990.5,26.56]
[1742651104024,12.58467379,1990.6,1990.5,26.56]
[1742651104632,5.78556,1990.3,1990.2,4.665]
[1742651104834,9.17400492,1990.3,1990.2,4.665]
[1742651105154,10.87354243,1990.3,1990.2,4.665]
[1742651107220,9.79256643,1990.3,1990.2,4.665]
[1742651107892,5.94558501,1990.3,1990.2,4.665]
[1742651111458,6.00839471,1990.3,1990.2,4.665]
[1742651113858,5.94558501,1990.3,1990.2,4.665]
[1742651114064,6.00839566,1990.3,1990.2,4.665]
[1742651114269,7.49635337,1990.3,1990.2,4.665]
[1742651114452,7.43354272,1990.3,1990.2,4.665]
[1742651115565,7.49635333,1990.3,1990.2,4.665]
[1742651117736,7.43354272,1990.3,1990.2,4.665]
[1742651120571,7.49635336,1990.3,1990.2,4.665]
[1742651120868,7.43354272,1990.3,1990.2,4.665]
[1742651121671,5.02512,1990.0,1989.9,26.559]
[1742651121874,5.02512,1990.0,1989.9,31.225]
[1742651122036,5.18166147,1990.0,1989.9,31.225]
[1742651127090,7.48977358,1990.0,1989.9,31.225]
[1742651129095,7.48977358,1990.0,1989.9,26.559]
[1742651129270,7.48977358,1990.0,1989.9,31.225]
[1742651131209,7.6161665,1990.0,1989.9,31.225]
[1742651132401,7.6161665,1990.0,1989.9,4.666]
[1742651135704,5.30805439,1990.0,1989.9,4.666]
[1742651136764,5.02563,1989.8,1989.7,27.189799]
[1742651136965,5.30666108,1989.8,1989.7,34.5747789]
[1742651137264,5.02563,1989.8,1989.7,34.5747789]
[1742651141012,5.02548,1989.9,1989.7,34.5747789]
[1742651141209,0.28079887,1989.8,1989.7,34.5747789]
[1742651141417,10.05104,1989.9,1989.7,34.5747789]
[1742651141594,0.28079887,1989.8,1989.7,34.5747789]
[1742651141781,5.02563,1989.8,1989.7,34.5747789]
[1742651142279,10.05105,1989.9,1989.7,34.5747789]
[1742651142480,5.02548,1989.9,1989.7,34.5747789]
[1742651142700,5.02548,1989.9,1989.8,0.7732042]
[1742651143238,5.02458,1990.3,1989.9,0.5978]
[1742651143537,5.02458,1990.3,1990.0,0.5978]
[1742651143699,5.02458,1990.3,1990.1,4.666]
[1742651143900,10.04914,1990.3,1990.1,5.19238]
[1742651144247,5.02406,1990.5,1990.2,0.5978]
[1742651144602,10.04815,1990.5,1990.2,0.5978]
[1742651144825,5.02406,1990.5,1990.2,0.5978]
[1742651145024,7.33154211,1990.7,1990.3,5.02432]
[1742651145223,5.02352,1990.7,1990.4,1.100232]
[1742651145554,5.02352,1990.7,1990.5,31.231]
[1742651146156,10.04711,1990.7,1990.5,31.231]
[1742651147053,5.02361,1990.6,1990.5,31.231]
[1742651147429,7.33172211,1990.6,1990.5,31.231]
[1742651147855,8.15012211,1990.6,1990.5,31.231]
[1742651149211,9.68726789,1990.6,1990.5,31.231]
[1742651149451,9.94501873,1990.6,1990.5,31.231]
[1742651154865,9.12661873,1990.6,1990.5,31.231]
[1742651158476,5.02411,1990.4,1990.3,32.44999]
[1742651158846,5.28148144,1990.4,1990.3,32.44999]
[1742651159669,5.28148144,1990.4,1990.3,37.11499]
[1742651166283,0.25737144,1990.4,1990.3,39.3075899]
[1742651166452,0.25737144,1990.4,1990.3,39.9053899]
[1742651166652,5.02361,1990.6,1990.3,39.9053899]
[1742651166849,0.25760873,1990.5,1990.3,39.9053899]
[1742651167669,0.25760873,1990.5,1990.4,6.17191]
[1742651167839,0.25760873,1990.5,1990.4,6.9451142]
[1742651168070,4.61795789,1991.0,1990.5,0.5978]
[1742651168071,10.04647,1990.8,1990.5,0.5978]
[1742651168604,10.04647,1990.8,1990.5,6.48779]
[1742651169336,5.02318,1990.8,1990.5,6.48779]
[1742651170816,10.04647,1990.8,1990.6,26.558]
[1742651171012,5.02318,1990.8,1990.7,4.664]
[1742651172807,5.02318,1990.8,1990.7,5.2618]
[1742651173004,5.02288,1990.9,1990.7,5.2618]
[1742651173841,10.04591,1990.9,1990.7,5.2618]
[1742651174199,5.02288,1990.9,1990.7,5.2618]
[1742651174408,5.02288,1990.9,1990.7,7.4543999]
[1742651174934,5.02263,1991.0,1990.7,13.3443899]
[1742651176651,5.02235,1991.1,1990.7,19.38276393]
[1742651176872,10.04493,1991.1,1990.7,19.38276393]
[1742651177345,5.02235,1991.1,1990.7,19.38276393]
[1742651177501,10.04487,1991.1,1990.8,0.7732042]
[1742651177706,5.02265,1991.0,1990.8,0.7732042]
[1742651179406,0.2602763,1990.9,1990.8,0.7732042]
[1742651181944,10.04488,1991.1,1990.8,0.7732042]
[1742651182434,0.26105109,1991.0,1990.8,0.7732042]
[1742651183545,0.26105109,1991.0,1990.8,5.7962642]
[1742651183749,0.26105109,1991.0,1990.9,1.12418]
[1742651183910,0.26105109,1991.0,1990.9,0.5978]
[1742651186458,5.0221,1991.2,1990.9,6.48779]
[1742651186657,0.26170982,1991.1,1990.9,6.48779]
[1742651186952,5.0221,1991.2,1990.9,6.48779]
[1742651187123,0.24913465,1991.0,1990.9,7.03779]
[1742651187325,5.0221,1991.2,1990.9,8.32118842]
[1742651187522,0.24913465,1991.0,1990.9,8.32118842]
[1742651188049,5.0221,1991.2,1990.9,8.32118842]
[1742651188357,0.24962472,1991.1,1990.9,8.32118842]
[1742651188761,5.0221,1991.2,1990.9,8.32118842]
[1742651189260,0.24956162,1991.1,1991.0,0.83211884]
[1742651189428,5.02217,1991.2,1991.0,0.83211884]
[1742651189630,5.02217,1991.2,1991.1,4.663]
[1742651189972,5.27222164,1991.2,1991.1,31.215]
[1742651191159,7.57754795,1991.2,1991.1,31.215]
[1742651191658,8.35314795,1991.2,1991.1,31.215]
[1742651191820,9.69065474,1991.2,1991.1,26.552]
[1742651192020,9.75343395,1991.2,1991.1,31.215]
[1742651192924,9.7534371,1991.2,1991.1,31.215]
[1742651193123,9.69065474,1991.2,1991.1,31.215]
[1742651193739,9.7534371,1991.2,1991.1,31.215]
[1742651193934,9.69065474,1991.2,1991.1,26.552]
[1742651194137,9.75343709,1991.2,1991.1,26.552]
[1742651194637,9.69065474,1991.2,1991.1,26.552]
[1742651194838,5.79794,1991.1,1991.0,4.663]
[1742651195163,9.824138,1991.1,1991.0,4.663]
[1742651195967,9.886922,1991.1,1991.0,4.663]
[1742651197166,9.88692237,1991.1,1991.0,4.663]
[1742651197766,9.824138,1991.1,1991.0,4.663]
[1742651197955,9.88692223,1991.1,1991.0,4.663]